fUST/lending_fUST_20241031
["ID","MTS","AMOUNT","RATE_DAILY","PERIOD"]
[341111119,1730387442487,-1567.787498,0.00030958,7]
[341111120,1730387442498,-151.0,0.00030958,7]
[341111121,1730387442508,-151.0,0.00030958,7]
[341111122,1730387442519,-333.48187,0.00030958,7]
[341111123,1730387442530,-333.48187,0.00030958,7]
[341111124,1730387442539,-1567.787498,0.00030958,7]
[341111125,1730387442551,-500.0,0.00030958,5]
[341111126,1730387442562,-500.0,0.00030958,5]
[341111127,1730387442572,-151.0,0.00030958,7]
[341111128,1730387442581,-151.0,0.00030958,7]
[341111129,1730387442591,-637.93486194,0.00030958,5]
[341111130,1730387442602,-500.0,0.00030958,5]
[341111131,1730387442697,-1600.883828,0.00030958,7]
[341111132,1730387442707,-615.03,0.00030958,5]
[341111133,1730387442716,-1600.883828,0.00030958,7]
[341111134,1730387442727,-151.0,0.00030958,7]
[341111135,1730387442736,-984.25,0.00030958,5]
[341111136,1730387442747,-214.45050738,0.00030958,5]
[341111137,1730387442761,-209.56943152,0.00030958,5]
[341111138,1730387442770,-118.24012036,0.00030958,2]
[341111150,1730387443529,-500.0,0.00030136,5]
[341111151,1730387443538,-207.85,0.0003041,5]
[341111152,1730387443574,-292.15,0.0003041,5]
[341111153,1730387443584,-408.55,0.00030684,5]
[341111154,1730387443595,-500.0,0.00030684,5]
[341111155,1730387443606,-381.75987964,0.00030958,2]
[341111156,1730387443615,-500.0,0.00030958,5]
[341111157,1730387443625,-1044.459128,0.00030958,7]
[341111158,1730387443634,-1044.459128,0.00030958,7]
[341111159,1730387443644,-151.0,0.00030958,7]
[341111160,1730387443656,-500.0,0.00030958,5]
[341111161,1730387443666,-151.0,0.00030958,7]
[341111162,1730387443675,-152.527538,0.00030958,7]
[341111163,1730387443684,-151.0,0.00030958,7]
[341111164,1730387443694,-500.0,0.00030958,5]
[341111165,1730387443703,-151.0,0.00030958,7]
[341111166,1730387443712,-151.0,0.00030958,7]
[341111167,1730387443721,-518.43,0.00030958,5]
[341111168,1730387443731,-500.0,0.00030958,5]
[341111169,1730387443740,-500.0,0.00030958,5]
[341111170,1730387443750,-500.0,0.00030958,5]
[341111171,1730387443759,-500.0,0.00030958,5]
[341111172,1730387443769,-578.49,0.00030958,5]
[341111173,1730387443779,-500.0,0.00030958,5]
[341111174,1730387443789,-500.0,0.00030958,5]
[341111175,1730387443868,-1160.144765,0.00030958,7]
[341111176,1730387443878,-500.0,0.00030958,5]
[341111177,1730387443888,-500.0,0.00030958,5]
[341111178,1730387443897,-1160.144765,0.00030958,7]
[341111179,1730387443907,-500.0,0.00030958,5]
[341111180,1730387443916,-151.0,0.00030958,7]
[341111181,1730387443928,-151.0,0.00030958,7]
[341111182,1730387443938,-500.0,0.00030958,5]
[341111183,1730387443948,-500.0,0.00030958,5]
[341111184,1730387443959,-151.0,0.00030958,7]
[341111185,1730387443969,-151.0,0.00030958,7]
[341111186,1730387443979,-676.22,0.00030958,5]
[341111187,1730387443989,-500.0,0.00030958,5]
[341111188,1730387443999,-1225.85309,0.00030958,7]
[341111189,1730387444009,-329.834179,0.00030958,7]
[341111190,1730387444019,-1225.85309,0.00030958,7]
[341111191,1730387444029,-500.0,0.00030958,5]
[341111192,1730387444038,-329.834179,0.00030958,7]
[341111193,1730387444049,-500.0,0.00030958,5]
[341111194,1730387444059,-1799.141304,0.00030958,7]
[341111195,1730387444069,-500.0,0.00030958,5]
[341111196,1730387444087,-1799.141304,0.00030958,7]
[341111197,1730387444102,-500.0,0.00030958,5]
[341111198,1730387444113,-500.0,0.00030958,5]
[341111199,1730387444124,-1158.901191,0.00030958,7]
[341111200,1730387444136,-500.0,0.00030958,5]
[341111201,1730387444147,-1158.901191,0.00030958,7]
[341111202,1730387444157,-500.0,0.00030958,5]
[341111203,1730387444167,-500.0,0.00030958,5]
[341111204,1730387444177,-6188.971458,0.00030958,7]
[341111205,1730387444186,-3135.871836,0.00030958,7]
[341111206,1730387444196,-5422.13019236,0.00030958,7]
[341111233,1730387446308,-500.0,0.00030136,5]
[341111234,1730387446318,-500.0,0.00030136,5]
[341111235,1730387446328,-500.0,0.0003041,5]
[341111236,1730387446338,-500.0,0.0003041,5]
[341111237,1730387446348,-6935.88,0.00030674,10]
[341111238,1730387446357,-500.0,0.00030684,5]
[341111239,1730387446367,-766.84126564,0.00030958,7]
[341111240,1730387446377,-3135.871836,0.00030958,7]
[341111241,1730387446386,-506.79307979,0.00030958,5]
[341111242,1730387446395,-151.0,0.00030958,7]
[341111243,1730387446404,-151.0,0.00030958,7]
[341111244,1730387446414,-507.77413033,0.00030958,5]
[341111245,1730387446424,-507.48,0.00030958,5]
[341111246,1730387446433,-500.0,0.00030958,5]
[341111247,1730387446443,-500.0,0.00030958,5]
[341111248,1730387446452,-500.0,0.00030958,5]
[341111249,1730387446461,-3302.736929,0.00030958,7]
[341111250,1730387446471,-3302.736929,0.00030958,7]
[341111251,1730387446480,-641.15696644,0.00030958,5]
[341111252,1730387446490,-647.20661665,0.00030958,5]
[341111253,1730387446500,-840.25047,0.00030958,7]
[341111254,1730387446510,-502.84804866,0.00030958,5]
[341111255,1730387446520,-840.25047,0.00030958,7]
[341111256,1730387446529,-500.0,0.00030958,5]
[341111257,1730387446540,-500.0,0.00030958,5]
[341111258,1730387446549,-500.0,0.00030958,5]
[341111259,1730387446559,-219.367093,0.00030958,7]
[341111260,1730387446568,-219.367093,0.00030958,7]
[341111261,1730387446578,-788.078115,0.00030958,7]
[341111262,1730387446587,-788.078115,0.00030958,7]
[341111263,1730387446599,-503.73895507,0.00030958,5]
[341111264,1730387446608,-151.0,0.00030958,7]
[341111265,1730387446618,-500.0,0.00030958,5]
[341111266,1730387446628,-591.89,0.00030958,5]
[341111267,1730387446638,-500.0,0.00030958,5]
[341111268,1730387446648,-500.0,0.00030958,5]
[341111270,1730387446658,-151.0,0.00030958,7]
[341111272,1730387446668,-289.58077,0.00030958,7]
[341111273,1730387446679,-500.0,0.00030958,5]
[341111274,1730387446689,-500.0,0.00030958,5]
[341111275,1730387446699,-3010.28,0.00030958,5]
[341111276,1730387446708,-500.0,0.00030958,5]
[341111277,1730387446718,-500.0,0.00030958,5]
[341111278,1730387446727,-500.0,0.00030958,5]
[341111279,1730387446737,-500.0,0.00030958,5]
[341111280,1730387446747,-1260.12,0.00030958,5]
[341111281,1730387446757,-1455.02,0.00030958,5]
[341111282,1730387446767,-1666.68,0.00030958,5]
[341111283,1730387446777,-500.0,0.00030958,5]
[341111284,1730387446786,-500.0,0.00030958,5]
[341111285,1730387446796,-528.26,0.00030958,5]
[341111286,1730387446805,-515.9757387,0.00030958,5]
[341111287,1730387446815,-500.0,0.00030958,5]
[341111288,1730387446825,-500.0,0.00030958,5]
[341111289,1730387446835,-595.27,0.00030958,5]
[341111290,1730387446845,-500.0,0.00030958,5]
[341111291,1730387446855,-3309.6,0.00030958,5]
[341111292,1730387446864,-500.0,0.00030958,5]
[341111293,1730387446873,-500.0,0.00030958,5]
[341111294,1730387446883,-500.0,0.00030958,5]
[341111295,1730387446893,-553.51694063,0.00030958,5]
[341111296,1730387446902,-500.0,0.00030958,5]
[341111297,1730387446912,-500.0,0.00030958,5]
[341111298,1730387446921,-500.0,0.00030958,5]
[341111299,1730387446931,-546.3,0.00030958,5]
[341111300,1730387446945,-500.0,0.00030958,5]
[341111301,1730387446955,-500.0,0.00030958,5]
[341111302,1730387447042,-500.0,0.00030958,5]
[341111303,1730387447052,-500.0,0.00030958,5]
[341111304,1730387447063,-516.233311,0.00030958,7]
[341111305,1730387447072,-500.0,0.00030958,5]
[341111306,1730387447081,-151.0,0.00030958,7]
[341111307,1730387447091,-516.233311,0.00030958,7]
[341111308,1730387447100,-325.8485024,0.00030958,5]
[341111309,1730387447110,-500.0,0.00030958,5]
[341111310,1730387447119,-500.0,0.00030958,5]
[341111311,1730387447128,-500.0,0.00030958,5]
[341111312,1730387447142,-151.0,0.00030958,7]
[341111313,1730387447151,-500.0,0.00030958,5]
[341111314,1730387447161,-500.0,0.00030958,5]
[341111315,1730387447170,-151.0,0.0003097,7]
[341111316,1730387447182,-1764.20363825,0.00030971,2]
[341111317,1730387447191,-823.0,0.00030984,2]
[341111318,1730387447201,-366.24,0.00031,14]
[341111319,1730387447212,-62165.29890629,0.00031231,2]
[341111320,1730387447222,-151.0,0.00031231,7]
[341111321,1730387447231,-151.0,0.00031231,7]
[341111322,1730387447241,-151.0,0.00031231,7]
[341111323,1730387447251,-333.48187,0.00031231,7]
[341111324,1730387447261,-333.48187,0.00031231,7]
[341111325,1730387447271,-151.0,0.00031231,7]
[341111326,1730387447280,-151.0,0.00031231,7]
[341111327,1730387447290,-151.0,0.00031231,7]
[341111328,1730387447299,-1044.459128,0.00031231,7]
[341111329,1730387447309,-1044.459128,0.00031231,7]
[341111330,1730387447319,-151.0,0.00031231,7]
[341111331,1730387447329,-151.0,0.00031231,7]
[341111332,1730387447339,-151.0,0.00031231,7]
[341111333,1730387447349,-1160.144765,0.00031231,7]
[341111334,1730387447358,-1160.144765,0.00031231,7]
[341111335,1730387447368,-500.0,0.00031232,5]
[341111336,1730387447377,-510.28760183,0.00031232,5]
[341111337,1730387447387,-151.0,0.00031232,7]
[341111338,1730387447396,-500.0,0.00031232,5]
[341111339,1730387447406,-179.329141,0.00031232,7]
[341111340,1730387447415,-179.329141,0.00031232,7]
[341111341,1730387447426,-500.0,0.00031232,5]
[341111342,1730387447436,-151.0,0.00031232,7]
[341111343,1730387447446,-500.0,0.00031232,5]
[341111344,1730387447456,-305.16537615,0.00031232,5]
[341111345,1730387447466,-153.725227,0.00031232,7]
[341111346,1730387447475,-151.0,0.00031232,7]
[341111347,1730387447484,-350.26614,0.00031232,7]
[341111348,1730387447493,-350.26614,0.00031232,7]
[341111349,1730387447503,-500.0,0.00031232,2]
[341111350,1730387447513,-546.93395141,0.00031232,5]
[341111351,1730387447522,-365.12377162,0.00031232,5]
[341111352,1730387447532,-540.001733,0.00031232,5]
[341111353,1730387447542,-540.001733,0.00031232,5]
[341111354,1730387447552,-151.0,0.00031232,7]
[341111355,1730387447561,-500.0,0.00031232,5]
[341111356,1730387447571,-500.0,0.00031232,5]
[341111357,1730387447581,-500.0,0.00031232,5]
[341111358,1730387447590,-223.894845,0.00031232,7]
[341111359,1730387447601,-500.0,0.00031232,5]
[341111360,1730387447610,-1049.883201,0.00031232,7]
[341111361,1730387447620,-401.391295,0.00031232,7]
[341111362,1730387447630,-401.391295,0.00031232,7]
[341111363,1730387447639,-1152.87729,0.00031232,7]
[341111364,1730387447649,-151.0,0.00031232,7]
[341111365,1730387447658,-151.0,0.00031232,7]
[341111366,1730387447667,-500.0,0.00031232,5]
[341111367,1730387447677,-151.0,0.00031232,7]
[341111368,1730387447686,-500.0,0.00031232,5]
[341111369,1730387447696,-244.121543,0.00031232,7]
[341111370,1730387447706,-500.0,0.00031232,5]
[341111371,1730387447715,-500.0,0.00031232,5]
[341111372,1730387447725,-500.0,0.00031232,5]
[341111373,1730387447735,-215.080066,0.00031232,7]
[341111374,1730387447744,-151.0,0.00031232,7]
[341111375,1730387447753,-2805.517021,0.00031232,7]
[341111376,1730387447762,-151.0,0.00031232,7]
[341111377,1730387447772,-215.080066,0.00031232,7]
[341111378,1730387447781,-2805.517021,0.00031232,7]
[341111379,1730387447791,-500.0,0.00031232,5]
[341111380,1730387447800,-500.0,0.00031232,5]
[341111381,1730387447810,-500.0,0.00031232,5]
[341111382,1730387447819,-500.0,0.00031232,5]
[341111383,1730387447829,-308.990643,0.00031232,7]
[341111384,1730387447838,-500.0,0.00031232,5]
[341111385,1730387447848,-308.990643,0.00031232,7]
[341111386,1730387447857,-151.0,0.00031232,7]
[341111387,1730387447867,-151.0,0.00031232,7]
[341111388,1730387447876,-500.0,0.00031232,5]
[341111389,1730387447885,-500.0,0.00031232,5]
[341111390,1730387447895,-1567.787498,0.00031232,7]
[341111391,1730387447905,-151.0,0.00031232,7]
[341111392,1730387447915,-1567.787498,0.00031232,7]
[341111393,1730387447923,-500.0,0.00031232,5]
[341111394,1730387447933,-500.0,0.00031232,5]
[341111395,1730387447942,-500.0,0.00031232,5]
[341111396,1730387447952,-1600.883828,0.00031232,7]
[341111397,1730387447962,-615.03,0.00031232,5]
[341111398,1730387447971,-1600.883828,0.00031232,7]
[341111399,1730387447980,-984.25,0.00031232,5]
[341111400,1730387447990,-37.37881118,0.00031232,2]
[341111405,1730387463854,165.078333,0.00013973,2]
[341111409,1730387582941,1344.0,0.00034472,34]
[341111410,1730387591365,1344.0,0.00034472,36]
[341111413,1730388194822,165.078333,0.00013973,2]
[341111487,1730388632540,-165.078333,0.00022759,2]
[341111488,1730388632554,-1493.6475169,0.00028558,2]
[341111489,1730388632564,-302.8122814,0.00029956,2]
[341111490,1730388632574,-600.0,0.00029983,2]
[341111491,1730388632584,-326.0,0.0003,2]
[341111492,1730388632593,-162.0,0.0003,2]
[341111493,1730388632603,-158.0,0.0003,2]
[341111494,1730388632612,-400.0,0.00030134,2]
[341111495,1730388632622,-400.0,0.00030134,2]
[341111496,1730388632633,-500.0,0.00030135,2]
[341111497,1730388632643,-438.16173151,0.00030136,7]
[341111498,1730388632652,-275.0,0.00030136,2]
[341111499,1730388632662,-510.2238971,0.00030136,5]
[341111500,1730388632671,-500.0,0.00030136,5]
[341111501,1730388632681,-509.05725315,0.00030136,5]
[341111502,1730388632693,-208.64517053,0.00030136,5]
[341111503,1730388632706,-291.35482947,0.00030136,5]
[341111504,1730388632716,-500.0,0.00030136,2]
[341111505,1730388632726,-500.0,0.00030136,5]
[341111506,1730388632736,-500.0,0.00030136,5]
[341111507,1730388632745,-201.44585627,0.00030136,5]
[341111508,1730388632755,-598.54732222,0.00030136,5]
[341111509,1730388632765,-276.33199204,0.00030136,5]
[341111533,1730388638917,-223.66800796,0.00030136,5]
[341111534,1730388638926,-27.68851545,0.00030136,5]
[341111535,1730388638941,-345.0065523,0.00030136,5]
[341111573,1730388643572,-127.30493225,0.00030136,5]
[341111574,1730388643582,-500.0,0.00030136,5]
[341111575,1730388643591,-511.7063501,0.00030136,5]
[341111576,1730388643601,-500.0,0.00030136,5]
[341111577,1730388643612,-509.39548992,0.00030136,5]
[341111578,1730388643621,-332.76643867,0.00030136,5]
[341111579,1730388643638,-167.23356133,0.00030136,5]
[341111580,1730388643647,-500.0,0.00030136,5]
[341111581,1730388643657,-500.0,0.00030136,5]
[341111582,1730388643667,-500.0,0.00030136,5]
[341111583,1730388643676,-529.81514878,0.00030136,5]
[341111584,1730388643685,-779.2,0.00030136,5]
[341111585,1730388643696,-500.0,0.00030136,5]
[341111586,1730388643705,-500.0,0.00030136,5]
[341111587,1730388643714,-500.0,0.00030136,5]
[341111588,1730388643724,-622.97064235,0.00030136,5]
[341111589,1730388643733,-500.0,0.00030136,5]
[341111590,1730388643742,-323.47360671,0.00030136,5]
[341111592,1730388643752,-500.0,0.00030136,5]
[341111594,1730388643762,-500.0,0.00030136,5]
[341111596,1730388643772,-500.0,0.00030136,5]
[341111597,1730388643781,-500.0,0.00030136,5]
[341111598,1730388643791,-500.0,0.00030136,5]
[341111599,1730388643800,-500.0,0.00030136,5]
[341111600,1730388643809,-173.44767758,0.00030136,5]
[341111601,1730388643819,-500.0,0.00030136,5]
[341111602,1730388643828,-500.0,0.00030136,5]
[341111603,1730388643838,-500.0,0.00030136,5]
[341111604,1730388643849,-500.0,0.00030136,5]
[341111605,1730388643858,-500.0,0.00030136,5]
[341111606,1730388643868,-500.0,0.00030136,5]
[341111607,1730388643878,-556.20741071,0.00030136,5]
[341111608,1730388643888,-500.0,0.00030136,5]
[341111609,1730388643898,-500.0,0.00030136,5]
[341111610,1730388643908,-545.83460449,0.00030136,5]
[341111611,1730388643918,-500.0,0.00030136,5]
[341111612,1730388643928,-500.0,0.00030136,5]
[341111613,1730388643938,-500.0,0.00030136,5]
[341111614,1730388643949,-510.27877761,0.00030136,5]
[341111615,1730388643959,-500.0,0.00030136,5]
[341111616,1730388643969,-500.0,0.00030136,5]
[341111617,1730388643979,-500.0,0.00030136,5]
[341111618,1730388643989,-1863.53,0.00030136,5]
[341111619,1730388643998,-576.82538593,0.00030136,5]
[341111620,1730388644008,-300.2260346,0.00030136,5]
[341111621,1730388644018,-500.0,0.00030136,5]
[341111622,1730388644028,-500.0,0.00030136,5]
[341111623,1730388644038,-500.0,0.00030136,5]
[341111624,1730388644049,-500.0,0.00030136,5]
[341111625,1730388644059,-340.3686972,0.00030136,5]
[341111626,1730388644069,-500.0,0.00030136,5]
[341111627,1730388644081,-500.0,0.00030136,5]
[341111628,1730388644091,-500.0,0.00030136,5]
[341111629,1730388644102,-500.0,0.00030136,5]
[341111630,1730388644112,-500.0,0.00030136,5]
[341111631,1730388644122,-500.0,0.00030136,5]
[341111632,1730388644131,-1388.9,0.00030136,5]
[341111633,1730388644141,-500.0,0.00030136,5]
[341111634,1730388644151,-1212.52,0.00030136,5]
[341111635,1730388644160,-500.0,0.00030136,5]
[341111636,1730388644170,-505.51163613,0.00030136,5]
[341111637,1730388644180,-500.0,0.00030136,5]
[341111638,1730388644191,-500.0,0.00030136,2]
[341111639,1730388644201,-509.43192008,0.00030136,5]
[341111640,1730388644210,-500.0,0.00030136,5]
[341111641,1730388644219,-500.0,0.00030136,5]
[341111642,1730388644229,-500.0,0.00030136,5]
[341111643,1730388644238,-500.0,0.00030136,5]
[341111644,1730388644248,-637.71888903,0.00030136,5]
[341111645,1730388644355,-500.0,0.00030136,5]
[341111646,1730388644365,-500.0,0.00030136,5]
[341111647,1730388644374,-500.0,0.00030136,5]
[341111648,1730388644384,-500.0,0.00030136,5]
[341111649,1730388644394,-1050.1,0.00030136,5]
[341111650,1730388644404,-500.0,0.00030136,5]
[341111651,1730388644414,-500.0,0.00030136,5]
[341111652,1730388644424,-500.0,0.00030136,5]
[341111653,1730388644433,-500.0,0.00030136,5]
[341111654,1730388644443,-500.0,0.00030136,5]
[341111655,1730388644453,-500.0,0.00030136,5]
[341111656,1730388644463,-500.0,0.00030136,5]
[341111657,1730388644477,-237.01184041,0.00030136,5]
[341111658,1730388644487,-500.0,0.00030136,5]
[341111659,1730388644496,-500.0,0.00030136,5]
[341111660,1730388644506,-500.0,0.00030136,5]
[341111661,1730388644517,-500.0,0.00030136,5]
[341111662,1730388644526,-563.51,0.00030136,5]
[341111663,1730388644535,-500.0,0.00030136,5]
[341111664,1730388644547,-500.0,0.00030136,5]
[341111665,1730388644557,-2758.0,0.00030136,5]
[341111666,1730388644567,-500.0,0.00030136,5]
[341111667,1730388644577,-500.0,0.00030136,5]
[341111668,1730388644587,-500.0,0.00030136,5]
[341111669,1730388644597,-500.0,0.00030136,5]
[341111670,1730388644607,-8049.34,0.00030136,3]
[341111671,1730388644617,-516.54186898,0.00030136,5]
[341111672,1730388644627,-505.36696481,0.00030136,5]
[341111673,1730388644638,-500.0,0.00030136,5]
[341111674,1730388644648,-933.38,0.00030136,5]
[341111675,1730388644658,-500.0,0.00030136,5]
[341111676,1730388644668,-208.307,0.0003014,2]
[341111677,1730388644678,-600.0,0.00030295,2]
[341111678,1730388644690,-183.98228965,0.0003031,2]
[341111679,1730388644707,-5779.9,0.000304,10]
[341111680,1730388644716,-4816.58,0.000304,10]
[341111681,1730388644725,-4013.82,0.000304,10]
[341111682,1730388644735,-393.81850083,0.00030409,2]
[341111683,1730388644745,-344.12961208,0.00030409,2]
[341111684,1730388644754,-179.6331021,0.00030409,2]
[341111685,1730388644764,-181.76863339,0.00030409,2]
[341111686,1730388644773,-500.0,0.00030409,2]
[341111687,1730388644782,-165.57394354,0.00030409,2]
[341111688,1730388644792,-500.0,0.0003041,5]
[341111689,1730388644803,-500.0,0.0003041,5]
[341111690,1730388644813,-500.0,0.0003041,2]
[341111691,1730388644823,-500.0,0.0003041,5]
[341111692,1730388644833,-500.0,0.0003041,5]
[341111693,1730388644844,-500.0,0.0003041,5]
[341111694,1730388644854,-500.0,0.0003041,5]
[341111695,1730388644863,-500.0,0.0003041,5]
[341111696,1730388644874,-500.0,0.0003041,5]
[341111697,1730388644884,-448.23673004,0.0003041,5]
[341111698,1730388644894,-500.0,0.0003041,5]
[341111699,1730388644905,-500.0,0.0003041,5]
[341111700,1730388644917,-779.2,0.0003041,5]
[341111701,1730388644927,-501.22721375,0.0003041,5]
[341111702,1730388644937,-500.0,0.0003041,5]
[341111703,1730388644949,-500.0,0.0003041,5]
[341111704,1730388644960,-500.0,0.0003041,5]
[341111705,1730388644970,-500.0,0.0003041,5]
[341111706,1730388644981,-500.0,0.0003041,5]
[341111707,1730388644991,-500.0,0.0003041,5]
[341111708,1730388645001,-500.0,0.0003041,5]
[341111709,1730388645010,-500.0,0.0003041,5]
[341111710,1730388645019,-500.0,0.0003041,5]
[341111711,1730388645029,-500.0,0.0003041,5]
[341111712,1730388645039,-604.12795206,0.0003041,5]
[341111713,1730388645049,-500.0,0.0003041,5]
[341111714,1730388645058,-500.0,0.0003041,5]
[341111715,1730388645068,-500.0,0.0003041,5]
[341111716,1730388645077,-500.0,0.0003041,5]
[341111717,1730388645088,-313.48,0.0003041,5]
[341111718,1730388645098,-500.0,0.0003041,5]
[341111719,1730388645107,-500.0,0.0003041,5]
[341111720,1730388645117,-500.0,0.0003041,5]
[341111721,1730388645127,-500.0,0.0003041,5]
[341111722,1730388645138,-509.96707723,0.0003041,5]
[341111723,1730388645148,-388.64462477,0.0003041,5]
[341111724,1730388645158,-376.56486383,0.0003041,5]
[341111725,1730388645173,-1486.96513617,0.0003041,5]
[341111726,1730388645183,-500.0,0.0003041,5]
[341111727,1730388645195,-500.0,0.0003041,5]
[341111728,1730388645204,-500.0,0.0003041,5]
[341111729,1730388645213,-313.68973197,0.0003041,5]
[341111734,1730388646530,-186.31026803,0.0003041,5]
[341111736,1730388646539,-500.0,0.0003041,5]
[341111738,1730388646551,-500.0,0.0003041,5]
[341111740,1730388646563,-1388.9,0.0003041,5]
[341111742,1730388646573,-500.0,0.0003041,5]
[341111743,1730388646583,-1212.52,0.0003041,5]
[341111745,1730388646593,-500.0,0.0003041,5]
[341111746,1730388646603,-500.0,0.0003041,5]
[341111748,1730388646613,-500.0,0.0003041,2]
[341111749,1730388646622,-500.0,0.0003041,5]
[341111750,1730388646631,-500.0,0.0003041,5]
[341111751,1730388646641,-500.0,0.0003041,5]
[341111752,1730388646652,-500.0,0.0003041,5]
[341111753,1730388646662,-500.0,0.0003041,5]
[341111754,1730388646672,-377.9014077,0.0003041,5]
[341111755,1730388646684,-122.0985923,0.0003041,5]
[341111757,1730388646700,-500.0,0.0003041,5]
[341111759,1730388646710,-500.0,0.0003041,5]
[341111761,1730388646719,-1050.1,0.0003041,5]
[341111763,1730388646729,-408.89208198,0.0003041,5]
[341111765,1730388646738,-500.0,0.0003041,5]
[341111767,1730388646748,-500.0,0.0003041,5]
[341111768,1730388646758,-499.36248917,0.0003041,5]
[341111769,1730388646767,-500.0,0.0003041,5]
[341111770,1730388646777,-500.0,0.0003041,5]
[341111771,1730388646786,-511.74823867,0.0003041,5]
[341111772,1730388646796,-500.0,0.0003041,5]
[341111773,1730388646805,-500.0,0.0003041,5]
[341111774,1730388646814,-500.0,0.0003041,5]
[341111775,1730388646824,-500.0,0.0003041,5]
[341111776,1730388646834,-563.51,0.0003041,5]
[341111777,1730388646843,-500.0,0.0003041,5]
[341111778,1730388646853,-500.0,0.0003041,5]
[341111780,1730388646862,-2758.0,0.0003041,5]
[341111782,1730388646872,-500.0,0.0003041,5]
[341111784,1730388646881,-500.0,0.0003041,5]
[341111786,1730388646891,-500.0,0.0003041,5]
[341111788,1730388646900,-500.0,0.0003041,5]
[341111790,1730388646910,-8049.34,0.0003041,3]
[341111792,1730388646920,-500.0,0.0003041,5]
[341111794,1730388646929,-933.38,0.0003041,5]
[341111796,1730388646939,-500.0,0.0003041,5]
[341111798,1730388646949,-326.0,0.00030411,2]
[341111800,1730388646959,-17.24045488,0.00030607,2]
[341111827,1730389188387,165.078333,0.00013973,2]
[341111831,1730389298134,1143.07640469,0.00024,120]
[341111832,1730389327874,-4778.771,0.0003,30]
[341111833,1730389327918,-575.870214,0.0003122,120]
[341111834,1730389327948,-151.0,0.00031397,120]
[341111835,1730389327980,-1500.0,0.00032,60]
[341111836,1730389328005,-233.7896,0.00032,30]
[341111837,1730389328030,-300.0,0.00032,120]
[341111838,1730389328063,-1615.94,0.000321,30]
[341111839,1730389328088,-1795.68,0.000321,30]
[341111840,1730389328130,-151.0,0.00032795,120]
[341111841,1730389328157,-215.821,0.0003282,36]
[341111842,1730389328188,-349.592486,0.00032877,120]
[341111843,1730389347894,5001.59,0.0002011,2]
[341111953,1730389832856,-300.0,0.00024123,2]
[341111956,1730389832894,-300.0,0.00024123,2]
[341111957,1730389832904,-19573.54463814,0.00024124,2]
[341111959,1730389832920,-165.078333,0.00024224,2]
[341111961,1730389832929,-802.4511112,0.00024396,2]
[341111963,1730389832938,-367.62160735,0.00026,2]
[341111965,1730389832949,-50000.0,0.00026,2]
[341111967,1730389832958,-420.0,0.00026157,2]
[341111968,1730389832968,-420.0,0.00026535,2]
[341111969,1730389832978,-199.37004678,0.0002742,5]
[341111970,1730389832987,-197.72625,0.0002752,2]
[341111971,1730389832997,-199.37004677,0.00027586,5]
[341111972,1730389833006,-199.37004677,0.00027752,5]
[341111973,1730389833018,-173.658,0.00027852,2]
[341111974,1730389833027,-216.0922667,0.0002807,2]